bitfinex/quotes_BTCUSD_20240623
["timestamp","ask_amount","ask_price","bid_price","bid_amount"]
[1719165722131,0.58868191,64200.0,64199.0,0.00015545]
[1719165723291,0.27715591,64200.0,64199.0,0.00015545]
[1719165723505,0.12139291,64200.0,64199.0,0.38405545]
[1719165723700,0.12139291,64200.0,64199.0,0.40405545]
[1719165723981,0.12139291,64200.0,64199.0,0.38405545]
[1719165724135,0.12139291,64200.0,64199.0,1.18288245]
[1719165724136,0.05652044,64200.0,64199.0,1.18288245]
[1719165724338,0.12567986,64200.0,64199.0,1.64697457]
[1719165724540,0.12567986,64200.0,64199.0,1.92117457]
[1719165724541,0.03214115,64200.0,64199.0,1.92117457]
[1719165724738,0.03214115,64200.0,64199.0,1.99881975]
[1719165724939,0.03296828,64200.0,64199.0,1.99881975]
[1719165725141,0.00185,64200.0,64199.0,1.99881975]
[1719165725527,0.00085,64206.0,64205.0,1.500257]
[1719165725729,0.00085,64206.0,64205.0,2.08911812]
[1719165725940,0.00085,64206.0,64205.0,2.25331812]
[1719165726132,0.00085,64206.0,64205.0,2.27631812]
[1719165726550,0.00085,64206.0,64205.0,2.22407357]
[1719165726720,0.00085,64206.0,64205.0,2.27647357]
[1719165726941,0.07004936,64217.0,64216.0,0.539624]
[1719165727143,0.02763532,64217.0,64216.0,1.33508112]
[1719165727668,0.02763532,64217.0,64216.0,1.33523657]
[1719165727871,0.07004936,64221.0,64220.0,0.6639]
[1719165728049,0.09802183,64221.0,64220.0,1.151043]
[1719165728257,0.07462088,64221.0,64220.0,1.151043]
[1719165728472,0.02797247,64221.0,64220.0,1.151043]
[1719165728876,0.02797247,64221.0,64220.0,1.15119845]
[1719165729074,0.02797247,64221.0,64220.0,1.15119847]
[1719165729592,0.04662813,64224.0,64222.0,0.175709]
[1719165729890,0.02776308,64223.0,64222.0,0.175709]
[1719165730457,0.02776308,64224.0,64223.0,0.01]
[1719165730654,0.04747813,64225.0,64224.0,0.02]
[1719165730901,0.07519303,64225.0,64223.0,0.01]
[1719165731110,0.07434303,64224.0,64223.0,0.00015547]
[1719165731483,0.0277149,64224.0,64223.0,0.00015547]
[1719165731627,0.0277149,64224.0,64223.0,0.00315547]
[1719165731920,0.0277149,64224.0,64223.0,0.02315547]
[1719165732483,0.0277149,64224.0,64223.0,0.00315547]
[1719165733061,0.0277149,64224.0,64223.0,0.00515547]
[1719165733804,0.02782471,64224.0,64223.0,0.00315547]
[1719165734010,0.02782471,64224.0,64223.0,0.00615547]
[1719165734208,0.02782472,64224.0,64223.0,0.00615547]
[1719165734621,0.18352972,64224.0,64223.0,0.00615547]
[1719165734996,0.23010608,64224.0,64223.0,0.00615547]
[1719165735449,0.22969524,64224.0,64223.0,0.00615547]
[1719165735621,0.18311888,64224.0,64223.0,0.00615547]
[1719165736722,0.18299433,64224.0,64223.0,0.00615547]
[1719165738044,0.49525433,64224.0,64223.0,0.00615547]
[1719165739772,0.49507564,64224.0,64223.0,0.00615547]
[1719165742742,0.467965,64224.0,64223.0,0.00615547]
[1719165742950,1.14166134,64224.0,64223.0,0.00615547]
[1719165743391,1.80527806,64224.0,64223.0,0.00615547]
[1719165743597,1.89189076,64224.0,64223.0,0.00615547]
[1719165743807,1.89871682,64224.0,64223.0,0.00615547]
[1719165743952,1.89871682,64224.0,64223.0,0.00015547]
[1719165744159,1.90171682,64224.0,64223.0,0.00015547]
[1719165744362,1.90471682,64224.0,64223.0,0.00015547]
[1719165744561,1.90171682,64224.0,64223.0,0.00015547]
[1719165744948,2.40979682,64224.0,64223.0,0.00115547]
[1719165745347,0.667194,64213.0,64212.0,0.4752]
[1719165745573,1.89127876,64213.0,64212.0,0.4752]
[1719165745770,1.89789072,64213.0,64212.0,0.4752]
[1719165746295,1.99789072,64213.0,64212.0,0.4752]
[1719165746502,1.314155,64211.0,64210.0,0.08]
[1719165746738,1.48761613,64211.0,64210.0,0.08]
[1719165746967,1.48829435,64211.0,64210.0,0.08]
[1719165747194,1.39911531,64211.0,64210.0,0.08]
[1719165747791,1.39911531,64211.0,64210.0,0.081]
[1719165747792,1.41111531,64211.0,64210.0,0.081]
[1719165747972,1.97514943,64211.0,64210.0,0.001]
[1719165748336,1.97514943,64211.0,64210.0,0.002]
[1719165748337,2.01589086,64211.0,64210.0,0.002]
[1719165748539,1.090222,64207.0,64203.0,0.08]
[1719165748742,1.43272777,64207.0,64203.0,0.08]
[1719165748944,1.4409023,64207.0,64203.0,0.08]
[1719165749857,1.4449023,64207.0,64206.0,0.001935]
[1719165750511,1.4449023,64207.0,64206.0,0.000935]
[1719165750512,1.4409023,64207.0,64206.0,0.000935]
[1719165750712,1.4529023,64207.0,64206.0,0.002935]
[1719165751071,1.6529023,64207.0,64206.0,0.002935]
[1719165753274,1.96329039,64207.0,64206.0,0.002935]
[1719165753918,2.15701727,64207.0,64206.0,0.002935]
[1719165755136,2.15818437,64207.0,64206.0,0.002935]
[1719165755630,2.46967637,64207.0,64206.0,0.002935]
[1719165759058,2.49140631,64207.0,64206.0,0.002935]
[1719165759664,2.40211677,64207.0,64206.0,0.002935]
[1719165760008,2.49188373,64207.0,64206.0,0.002935]
[1719165762460,2.46788373,64207.0,64206.0,0.002935]
[1719165762682,2.46738922,64207.0,64206.0,0.002935]
[1719165763294,2.46739185,64207.0,64206.0,0.002935]
[1719165765791,2.46741035,64207.0,64206.0,0.002935]
[1719165768680,2.58355547,64207.0,64206.0,0.002935]
[1719165768921,2.49426189,64207.0,64206.0,0.002935]
[1719165769077,2.58351658,64207.0,64206.0,0.002935]
[1719165771205,2.27202458,64207.0,64206.0,0.002935]
[1719165771369,2.15588067,64207.0,64206.0,0.002935]
[1719165771987,2.01422477,64207.0,64206.0,0.002935]
[1719165772253,2.27181237,64207.0,64206.0,0.002935]
[1719165772449,2.06662477,64207.0,64206.0,0.002935]
[1719165772624,2.27181339,64207.0,64206.0,0.002935]
[1719165773728,2.27196137,64207.0,64206.0,0.002935]
[1719165774222,2.01956137,64207.0,64206.0,0.002935]
[1719165774428,1.64434755,64207.0,64206.0,0.142535]
[1719165774630,1.62036262,64207.0,64206.0,0.142535]
[1719165774793,1.55067755,64207.0,64206.0,0.142535]
[1719165775171,1.46146277,64207.0,64206.0,0.142535]
[1719165775403,1.55089524,64207.0,64206.0,0.142535]
[1719165775871,1.59734881,64207.0,64206.0,0.142535]
[1719165776123,1.55089524,64207.0,64206.0,0.142535]
[1719165776369,1.59734881,64207.0,64206.0,0.142535]
[1719165777092,1.44478769,64207.0,64206.0,0.142535]
[1719165777292,1.39833412,64207.0,64206.0,0.142535]
[1719165777519,1.44478507,64207.0,64206.0,0.142535]
[1719165777732,1.39833412,64207.0,64206.0,0.142535]
[1719165778149,1.46808332,64207.0,64206.0,0.142535]
[1719165779763,1.41568332,64207.0,64206.0,0.142535]
[1719165780113,1.46808332,64207.0,64206.0,0.142535]
[1719165780430,1.39840844,64207.0,64206.0,0.142535]
[1719165780869,1.3985079,64207.0,64206.0,0.142535]
[1719165781048,1.46824063,64207.0,64206.0,0.142535]
[1719165781255,1.3461079,64207.0,64206.0,0.142535]
[1719165781469,1.44540168,64207.0,64206.0,0.142535]
[1719165781636,1.44540188,64207.0,64206.0,0.142535]
[1719165782353,1.39890447,64207.0,64206.0,0.142535]
[1719165782827,1.46866716,64207.0,64206.0,0.142535]
[1719165783648,1.46837773,64207.0,64206.0,0.142535]
[1719165784331,1.39860145,64207.0,64206.0,0.142535]
[1719165784536,1.4916365,64207.0,64206.0,0.142535]
[1719165784934,1.39860145,64207.0,64206.0,0.142535]
[1719165785314,1.4916365,64207.0,64206.0,0.142535]
[1719165785475,1.39860145,64207.0,64206.0,0.142535]
[1719165786325,1.51489526,64207.0,64206.0,0.142535]
[1719165786540,1.30890165,64207.0,64206.0,0.142535]
[1719165786844,1.51509388,64207.0,64206.0,0.142535]
[1719165787518,1.39864499,64207.0,64206.0,0.142535]
[1719165789407,1.53838366,64207.0,64206.0,0.142535]
[1719165789642,1.53853854,64207.0,64206.0,0.142535]
[1719165790050,1.30890165,64207.0,64206.0,0.142535]
[1719165790241,1.53842321,64207.0,64206.0,0.142535]
[1719165790433,1.39844853,64207.0,64206.0,0.142535]
[1719165792566,1.39845902,64207.0,64206.0,0.142535]
[1719165795529,1.30890165,64207.0,64206.0,0.142535]
[1719165795754,1.39842498,64207.0,64206.0,0.142535]
[1719165796820,1.24267898,64207.0,64206.0,0.142535]
[1719165797028,1.39842498,64207.0,64206.0,0.142535]
[1719165797230,1.59842498,64207.0,64206.0,0.142535]
[1719165797434,1.39842498,64207.0,64206.0,0.142535]
[1719165798740,1.39793971,64207.0,64206.0,0.142535]
[1719165799156,1.39767647,64207.0,64206.0,0.142535]
[1719165799367,1.75023759,64207.0,64206.0,0.142535]
[1719165799568,1.70786783,64207.0,64206.0,0.142535]
[1719165800423,1.70802357,64207.0,64206.0,0.142535]
[1719165800736,1.55039333,64207.0,64206.0,0.142535]
[1719165801665,1.49799333,64207.0,64206.0,0.142535]
[1719165801868,1.55030651,64207.0,64206.0,0.142535]
[1719165803141,2.16470704,64207.0,64206.0,0.002935]
[1719165804328,1.65321504,64207.0,64206.0,0.081235]
[1719165804532,2.01081934,64207.0,64206.0,0.147735]
[1719165804730,1.85321504,64207.0,64206.0,0.147735]
[1719165804936,2.01081916,64207.0,64206.0,0.147735]
[1719165805407,1.85321504,64207.0,64206.0,0.147735]
[1719165806032,1.75030651,64207.0,64206.0,0.147735]
[1719165806249,2.06179851,64207.0,64206.0,0.147735]
[1719165806747,1.75030651,64207.0,64206.0,0.147735]
[1719165806904,1.75030651,64207.0,64206.0,0.069435]
[1719165807336,2.16455276,64207.0,64206.0,0.069435]
[1719165807951,1.97311051,64207.0,64206.0,0.069435]
[1719165808145,2.16418332,64207.0,64206.0,0.069435]
[1719165808345,1.97311051,64207.0,64206.0,0.069435]
[1719165808554,2.16208916,64207.0,64206.0,0.069435]
[1719165809713,2.23031044,64207.0,64206.0,0.069435]
[1719165809922,2.05608023,64207.0,64206.0,0.069435]
[1719165810062,2.25607287,64207.0,64206.0,0.069435]
[1719165810273,2.05607287,64207.0,64206.0,0.069435]
[1719165810493,2.25607287,64207.0,64206.0,0.069435]
[1719165811384,2.15385617,64207.0,64206.0,0.069435]
[1719165811586,2.1536511,64207.0,64206.0,0.069435]
[1719165812198,2.25575156,64207.0,64206.0,0.069435]
[1719165813362,1.9536511,64207.0,64206.0,0.069435]
[1719165814188,1.86678051,64207.0,64206.0,0.069435]
[1719165814395,1.95348864,64207.0,64206.0,0.069435]
[1719165814812,1.95348868,64207.0,64206.0,0.069435]
[1719165815330,2.15348868,64207.0,64206.0,0.069435]
[1719165815538,1.95348868,64207.0,64206.0,0.069435]
[1719165816124,1.64199668,64207.0,64206.0,0.069435]
[1719165816320,1.58959668,64207.0,64206.0,0.069435]
[1719165816488,1.64199668,64207.0,64206.0,0.069435]
[1719165817717,1.64278546,64207.0,64206.0,0.069435]
[1719165817925,1.64278546,64207.0,64206.0,0.146135]
[1719165818317,1.55528851,64207.0,64206.0,0.146135]
[1719165818521,1.59036571,64207.0,64206.0,0.146135]
[1719165818720,1.64276571,64207.0,64206.0,0.146135]
[1719165820809,1.55528851,64207.0,64206.0,0.146135]
[1719165821014,1.64339538,64207.0,64206.0,0.146135]
[1719165824000,1.64325818,64207.0,64206.0,0.146135]
[1719165826076,1.84325818,64207.0,64206.0,0.146135]
[1719165826921,1.75528851,64207.0,64206.0,0.146135]
[1719165827101,1.84149475,64207.0,64206.0,0.146135]
[1719165827484,1.841659,64207.0,64206.0,0.146135]
[1719165828707,1.84157107,64207.0,64206.0,0.146135]
[1719165829548,1.64157107,64207.0,64206.0,0.146135]
[1719165830109,1.55528851,64207.0,64206.0,0.146135]
[1719165830311,1.64156006,64207.0,64206.0,0.146135]
[1719165832133,1.84156006,64207.0,64206.0,0.146135]
[1719165833146,1.84147244,64207.0,64206.0,0.146135]
[1719165833900,1.64147244,64207.0,64206.0,0.146135]
[1719165836037,1.64143733,64207.0,64206.0,0.146135]
[1719165836590,1.6164279,64207.0,64206.0,0.146135]
[1719165836711,1.64184544,64207.0,64206.0,0.146135]
[1719165836907,1.58944544,64207.0,64206.0,0.146135]
[1719165837138,1.64184544,64207.0,64206.0,0.146135]
[1719165839011,1.55528851,64207.0,64206.0,0.146135]
[1719165839213,1.64252311,64207.0,64206.0,0.146135]
[1719165839798,1.64132311,64207.0,64206.0,0.146135]
[1719165841398,1.55408851,64207.0,64206.0,0.146135]
[1719165841597,1.64088781,64207.0,64206.0,0.146135]
[1719165842681,1.58848781,64207.0,64206.0,0.146135]
[1719165842882,1.64088781,64207.0,64206.0,0.146135]
[1719165844476,1.64182812,64207.0,64206.0,0.146135]
[1719165845030,1.55408851,64207.0,64206.0,0.146135]
[1719165845180,1.64182195,64207.0,64206.0,0.146135]
[1719165847586,1.64094564,64207.0,64206.0,0.146135]
[1719165850617,1.55408851,64207.0,64206.0,0.146135]
[1719165850796,1.64105542,64207.0,64206.0,0.146135]
[1719165854057,1.55408851,64207.0,64206.0,0.146135]
[1719165854259,1.64116078,64207.0,64206.0,0.146135]
[1719165854463,1.84116078,64207.0,64206.0,0.146135]
[1719165855518,1.84091769,64207.0,64206.0,0.146135]
[1719165855933,1.64091769,64207.0,64206.0,0.146135]
[1719165856649,1.57986478,64207.0,64206.0,0.146135]
[1719165856851,1.64134233,64207.0,64206.0,0.146135]
[1719165858184,1.58894233,64207.0,64206.0,0.146135]
[1719165858390,1.64134233,64207.0,64206.0,0.146135]
[1719165858808,1.58894233,64207.0,64206.0,0.146135]
[1719165859013,1.64134233,64207.0,64206.0,0.146135]
[1719165859823,1.64156529,64207.0,64206.0,0.146135]
[1719165860184,1.84156529,64207.0,64206.0,0.146135]
[1719165862588,1.64156529,64207.0,64206.0,0.146135]
[1719165862961,1.64129246,64207.0,64206.0,0.146135]
[1719165863827,1.58889246,64207.0,64206.0,0.146135]
[1719165864040,1.64129246,64207.0,64206.0,0.146135]
[1719165864742,1.64159551,64207.0,64206.0,0.146135]
[1719165865839,1.55408851,64207.0,64206.0,0.146135]
[1719165866133,1.64159848,64207.0,64206.0,0.146135]
[1719165866307,1.84159848,64207.0,64206.0,0.146135]
[1719165866504,1.64159848,64207.0,64206.0,0.146135]
[1719165866711,1.84159848,64207.0,64206.0,0.146135]
[1719165866916,1.84244848,64207.0,64206.0,0.146135]
[1719165867087,1.64244848,64207.0,64206.0,0.146135]
[1719165869108,1.6424311,64207.0,64206.0,0.146135]
[1719165869735,1.55493851,64207.0,64206.0,0.146135]
[1719165869932,1.64243561,64207.0,64206.0,0.146135]
[1719165872442,1.64247055,64207.0,64206.0,0.146135]
[1719165873005,1.64246729,64207.0,64206.0,0.146135]
[1719165874255,1.6424002,64207.0,64206.0,0.146135]
[1719165875324,1.5900002,64207.0,64206.0,0.146135]
[1719165875676,1.64261776,64207.0,64206.0,0.146135]
[1719165878574,1.6428358,64207.0,64206.0,0.146135]
[1719165880601,1.6428358,64207.0,64206.0,0.226135]
[1719165880602,0.41092868,64207.0,64206.0,0.226135]
[1719165880849,0.13345274,64207.0,64206.0,0.246135]
[1719165881330,0.04555545,64207.0,64206.0,0.246135]
[1719165881561,0.07171771,64207.0,64206.0,0.246135]
[1719165882104,0.20481569,64207.0,64206.0,0.224135]
[1719165882624,0.20881569,64207.0,64206.0,0.225135]
[1719165882849,0.20881569,64207.0,64206.0,0.224135]
[1719165883082,0.20481569,64207.0,64206.0,0.226135]
[1719165883310,0.20468275,64207.0,64206.0,0.226135]
[1719165884430,0.20465194,64207.0,64206.0,0.226135]
[1719165890071,0.98019706,64207.0,64206.0,0.226135]
[1719165890249,1.03161064,64207.0,64206.0,0.226135]
[1719165890452,1.17146621,64207.0,64206.0,0.226135]
[1719165890839,0.96484657,64207.0,64206.0,0.226135]
[1719165891036,1.1717127,64207.0,64206.0,0.226135]
[1719165891259,1.08411503,64207.0,64206.0,0.226135]
[1719165891633,1.08811503,64207.0,64206.0,0.225135]
[1719165892056,1.08911503,64207.0,64206.0,0.224135]
[1719165892256,1.08411503,64207.0,64206.0,0.224135]
[1719165892648,1.03871503,64207.0,64206.0,0.224135]
[1719165892887,1.09111503,64207.0,64206.0,0.224135]
[1719165893091,1.08711503,64207.0,64206.0,0.224135]
[1719165893492,1.02024657,64207.0,64206.0,0.224135]
[1719165893703,1.08721421,64207.0,64206.0,0.224135]
[1719165894499,1.09021421,64207.0,64206.0,0.224135]
[1719165895869,0.05493928,64207.0,64206.0,0.224135]
[1719165896089,0.10733928,64207.0,64206.0,0.224135]
[1719165896527,0.10768529,64207.0,64206.0,0.224135]
[1719165896745,0.10768529,64207.0,64206.0,0.244135]
[1719165896962,0.26343129,64207.0,64206.0,0.244135]
[1719165897665,0.26043129,64207.0,64206.0,0.244135]
[1719165898332,0.25743129,64207.0,64206.0,0.244135]
[1719165898578,0.20503129,64207.0,64206.0,0.244135]
[1719165898816,0.25743129,64207.0,64206.0,0.245135]
[1719165899039,0.20503129,64207.0,64206.0,0.245135]
[1719165899246,0.25743129,64207.0,64206.0,0.245135]
[1719165899465,0.24170145,64207.0,64206.0,0.245135]
[1719165899677,0.25747237,64207.0,64206.0,0.245135]
[1719165900108,0.25743122,64207.0,64206.0,0.245135]
[1719165901118,0.25743122,64207.0,64206.0,0.225135]
[1719165901733,0.10168522,64207.0,64206.0,0.225135]
[1719165901938,0.10166083,64207.0,64206.0,0.245135]
[1719165902348,0.10166083,64207.0,64206.0,0.225135]
[1719165903317,0.25740683,64207.0,64206.0,0.225135]
[1719165905032,0.24170145,64207.0,64206.0,0.225135]
[1719165905276,0.25726298,64207.0,64206.0,0.225135]
[1719165906101,0.56875498,64207.0,64206.0,0.225135]
[1719165907433,0.51635498,64207.0,64206.0,0.225135]
[1719165907723,0.56875498,64207.0,64206.0,0.225135]
[1719165907989,0.55319345,64207.0,64206.0,0.225135]
[1719165908188,0.56787452,64207.0,64206.0,0.225135]
[1719165908396,0.55319345,64207.0,64206.0,0.225135]
[1719165908600,0.61879828,64207.0,64206.0,0.225135]
[1719165909588,0.55319345,64207.0,64206.0,0.225135]
[1719165909793,0.61866329,64207.0,64206.0,0.225135]
[1719165911096,0.61863115,64207.0,64206.0,0.225135]
[1719165912934,0.56623115,64207.0,64206.0,0.225135]
[1719165913139,0.61863115,64207.0,64206.0,0.225135]
[1719165913960,0.55319345,64207.0,64206.0,0.225135]
[1719165914182,0.61906494,64207.0,64206.0,0.225135]
[1719165915971,0.93055694,64207.0,64206.0,0.225135]
[1719165916990,0.7410963,64207.0,64206.0,0.225135]
[1719165917411,0.83113,64207.0,64206.0,0.225135]
[1719165917742,0.89684217,64207.0,64206.0,0.225135]
[1719165918293,0.89684217,64207.0,64206.0,0.224135]
[1719165918718,0.89684217,64207.0,64206.0,0.080935]
[1719165918719,1.36389529,64207.0,64206.0,0.080935]
[1719165918881,1.36389529,64207.0,64206.0,0.000935]
[1719165918882,1.50393476,64207.0,64206.0,0.000935]
[1719165919130,1.50293476,64207.0,64206.0,0.000935]
[1719165919336,2.06805729,64207.0,64206.0,0.000935]
[1719165919812,2.2256017,64207.0,64206.0,0.000935]
[1719165920015,2.06689632,64207.0,64206.0,0.000935]
[1719165920219,2.06489632,64207.0,64206.0,0.000935]
[1719165920611,2.06589632,64207.0,64206.0,0.00109039]
[1719165920992,2.06489632,64207.0,64206.0,0.00109039]
[1719165921405,2.06889632,64207.0,64206.0,0.00209039]
[1719165921824,2.08289632,64207.0,64206.0,0.00309039]
[1719165922238,2.06889632,64207.0,64206.0,0.00209039]
[1719165922771,2.08189632,64207.0,64206.0,0.00309039]
[1719165922987,2.01734512,64207.0,64206.0,0.00309039]
[1719165923222,2.08143691,64207.0,64206.0,0.00309039]
[1719165924412,2.23895391,64207.0,64206.0,0.00309039]
[1719165925423,1.98655391,64207.0,64206.0,0.00309039]
[1719165925625,2.03895391,64207.0,64206.0,0.00309039]
[1719165925788,1.98655391,64207.0,64206.0,0.00309039]
[1719165925986,2.03922149,64207.0,64206.0,0.00309039]
[1719165926320,1.88171274,64207.0,64206.0,0.00309039]
[1719165926530,1.88171541,64207.0,64206.0,0.00309039]
[1719165926732,2.03920975,64207.0,64206.0,0.00309039]
[1719165927345,1.72771775,64207.0,64206.0,0.00309039]
[1719165927707,1.11266141,64207.0,64206.0,0.14659039]
[1719165927925,1.16506141,64207.0,64206.0,0.14659039]
[1719165928092,1.11266141,64207.0,64206.0,0.14659039]
[1719165928403,1.16506141,64207.0,64206.0,0.14659039]
[1719165928957,1.47769884,64207.0,64206.0,0.14659039]
[1719165929986,1.41218312,64207.0,64206.0,0.14659039]
[1719165930214,1.47777153,64207.0,64206.0,0.14659039]
[1719165930558,1.47862153,64207.0,64206.0,0.14659039]
[1719165932169,1.41303312,64207.0,64206.0,0.14659039]
[1719165932369,1.47775241,64207.0,64206.0,0.14659039]
[1719165935053,1.41303312,64207.0,64206.0,0.14659039]
[1719165935427,1.47790197,64207.0,64206.0,0.14659039]
[1719165935654,1.41303312,64207.0,64206.0,0.14659039]
[1719165935858,1.47789945,64207.0,64206.0,0.14659039]
[1719165936138,1.5022804,64207.0,64206.0,0.14659039]
[1719165938123,1.43741407,64207.0,64206.0,0.14659039]
[1719165938326,1.50180319,64207.0,64206.0,0.14659039]
[1719165941128,1.5024277,64207.0,64206.0,0.14659039]
[1719165941835,1.64239522,64207.0,64206.0,0.14659039]
[1719165942959,1.5024277,64207.0,64206.0,0.14659039]
[1719165944188,1.43741407,64207.0,64206.0,0.14659039]
[1719165944456,1.50222853,64207.0,64206.0,0.14659039]
[1719165944571,1.43741407,64207.0,64206.0,0.14659039]
[1719165944773,1.50222789,64207.0,64206.0,0.14659039]
[1719165945470,1.44982789,64207.0,64206.0,0.14659039]
[1719165945644,1.50222789,64207.0,64206.0,0.14659039]
[1719165947300,1.48790707,64207.0,64206.0,0.14659039]
[1719165947541,1.50215173,64207.0,64206.0,0.14659039]
[1719165950498,1.50254667,64207.0,64206.0,0.14659039]
[1719165951779,1.50955009,64207.0,64206.0,0.14659039]
[1719165953490,1.44441749,64207.0,64206.0,0.14659039]
[1719165953667,1.50974369,64207.0,64206.0,0.14659039]
[1719165954048,1.50977623,64207.0,64206.0,0.14659039]
[1719165955345,1.66728672,64207.0,64206.0,0.14659039]
[1719165955516,1.61488672,64207.0,64206.0,0.14659039]
[1719165955720,1.66728672,64207.0,64206.0,0.14659039]
[1719165956473,1.44441749,64207.0,64206.0,0.14659039]
[1719165956621,1.66732339,64207.0,64206.0,0.14659039]
[1719165959427,1.50978557,64207.0,64206.0,0.14659039]
[1719165959813,1.66735909,64207.0,64206.0,0.14659039]
[1719165960612,1.50978557,64207.0,64206.0,0.14659039]
[1719165961962,1.5098024,64207.0,64206.0,0.14659039]
[1719165962484,1.50980398,64207.0,64206.0,0.14659039]
[1719165963260,1.45740398,64207.0,64206.0,0.14659039]
[1719165963460,1.50980398,64207.0,64206.0,0.14659039]
[1719165964549,1.50980398,64207.0,64206.0,0.06899039]
[1719165964550,2.11496598,64207.0,64206.0,0.06899039]
[1719165964717,2.11496598,64207.0,64206.0,0.06899042]
[1719165964918,2.04957949,64207.0,64206.0,0.00309042]
[1719165965137,2.11513152,64207.0,64206.0,0.00309042]
[1719165965539,2.20779148,64207.0,64206.0,0.00309042]
[1719165965717,1.95539148,64207.0,64206.0,0.00309042]
[1719165965924,2.00779148,64207.0,64206.0,0.00309042]
[1719165966723,1.95539148,64207.0,64206.0,0.00309042]
[1719165966931,1.91513152,64207.0,64206.0,0.00309042]
[1719165967867,1.91513152,64207.0,64206.0,0.14549042]
[1719165968071,1.91438631,64207.0,64206.0,0.14549042]
[1719165969548,1.91438631,64207.0,64206.0,0.06649042]
[1719165969549,1.45682431,64207.0,64206.0,0.06649042]
[1719165969777,1.19773231,64207.0,64206.0,0.14549042]
[1719165970812,1.14533231,64207.0,64206.0,0.14549042]
[1719165971044,1.13292549,64207.0,64206.0,0.14549042]
[1719165971245,1.19868219,64207.0,64206.0,0.14549042]
[1719165971661,1.19854558,64207.0,64206.0,0.14549042]
[1719165972936,1.19854558,64207.0,64206.0,0.24549042]
[1719165972937,0.21485446,64207.0,64206.0,0.24549042]
[1719165973337,0.35502051,64207.0,64206.0,0.24549042]
[1719165973571,0.21485446,64207.0,64206.0,0.24549042]
[1719165973889,0.14523437,64207.0,64206.0,0.24449042]
[1719165974091,0.15976302,64207.0,64206.0,0.24449042]
[1719165974291,0.16576302,64207.0,64206.0,0.24549042]
[1719165974727,0.15276302,64207.0,64206.0,0.24449042]
[1719165974981,0.14676302,64207.0,64206.0,0.24349042]
[1719165975205,0.15976302,64207.0,64206.0,0.22449042]
[1719165975434,0.14676302,64207.0,64206.0,0.22349042]
[1719165975652,0.14676302,64207.0,64206.0,0.24349042]
[1719165975653,0.19916302,64207.0,64206.0,0.24349042]
[1719165976327,0.20016302,64207.0,64206.0,0.24349042]
[1719165976564,0.10016302,64207.0,64206.0,0.24349042]
[1719165976787,0.09916302,64207.0,64206.0,0.24349042]
[1719165976964,0.10016302,64207.0,64206.0,0.24349042]
[1719165977692,0.09916302,64207.0,64206.0,0.24349042]
[1719165978416,0.09916302,64207.0,64206.0,0.24449042]
[1719165978631,0.10016302,64207.0,64206.0,0.24449042]
[1719165979938,0.09948565,64207.0,64206.0,0.22449042]
[1719165980148,0.15060139,64207.0,64206.0,0.22449042]
[1719165980356,0.24038037,64207.0,64206.0,0.22449042]
[1719165980600,0.4464966,64207.0,64206.0,0.22449042]
[1719165980802,0.30632871,64207.0,64206.0,0.22549042]
[1719165981700,0.30665134,64207.0,64206.0,0.22549042]
[1719165982864,0.24038037,64207.0,64206.0,0.22549042]
[1719165983064,0.30600645,64207.0,64206.0,0.22549042]
[1719165983490,0.4461758,64207.0,64206.0,0.22549042]
[1719165983748,0.30600645,64207.0,64206.0,0.22449042]
[1719165983963,0.61749845,64207.0,64206.0,0.22449042]
[1719165984176,1.3023661,64207.0,64206.0,0.22449042]
[1719165984388,1.16219675,64207.0,64206.0,0.22449042]
[1719165984560,1.08155157,64207.0,64206.0,0.22449042]
[1719165984825,1.08155157,64207.0,64206.0,0.22349042]
[1719165985044,1.08155157,64207.0,64206.0,0.22449042]
[1719165985253,1.08255157,64207.0,64206.0,0.22449042]
[1719165985462,1.08155157,64207.0,64206.0,0.22449042]
[1719165985876,1.08155157,64207.0,64206.0,0.22549042]
[1719165986287,1.58671357,64207.0,64206.0,0.00309042]
[1719165986661,2.09820557,64207.0,64206.0,0.00309042]
[1719165986894,2.25591545,64207.0,64206.0,0.00209042]
[1719165987313,2.09820557,64207.0,64206.0,0.00309042]
[1719165987521,2.10420557,64207.0,64206.0,0.00309042]
[1719165987853,2.09820557,64207.0,64206.0,0.00209042]
[1719165988257,2.10420557,64207.0,64206.0,0.00209042]
[1719165988461,2.10420557,64207.0,64206.0,0.00109042]
[1719165988694,2.10920557,64207.0,64206.0,0.00109042]
[1719165988900,2.10909948,64207.0,64206.0,0.00109042]
[1719165989277,2.04357949,64207.0,64206.0,0.00109042]
[1719165989478,2.11673983,64207.0,64206.0,0.00109042]
[1719165990118,2.04357949,64207.0,64206.0,0.00109042]
[1719165990320,2.1165321,64207.0,64206.0,0.00109042]
[1719165990524,2.04357949,64207.0,64206.0,0.00109042]
[1719165990735,2.11652758,64207.0,64206.0,0.00109042]
[1719165991602,1.91652758,64207.0,64206.0,0.00109042]
[1719165991978,2.04357949,64207.0,64206.0,0.00109042]
[1719165992138,1.91652904,64207.0,64206.0,0.00109042]
[1719165992357,1.86412904,64207.0,64206.0,0.00109042]
[1719165992613,1.91652904,64207.0,64206.0,0.00109042]
[1719165992971,2.11652904,64207.0,64206.0,0.00109042]
[1719165995181,1.91710141,64207.0,64206.0,0.00109042]
[1719165995384,2.11710141,64207.0,64206.0,0.00109042]
[1719165997413,2.27475536,64207.0,64206.0,0.00109042]
[1719165997666,2.11710141,64207.0,64206.0,0.00109042]
[1719165998013,2.04357949,64207.0,64206.0,0.00109042]
[1719165998216,2.11750726,64207.0,64206.0,0.00109042]
[1719165998700,2.11751686,64207.0,64206.0,0.00109042]
[1719165999986,2.1178064,64207.0,64206.0,0.00109042]
[1719166001209,2.14545426,64207.0,64206.0,0.00109042]
[1719166001376,2.14538844,64207.0,64206.0,0.00109042]
[1719166004339,2.07139826,64207.0,64206.0,0.00109042]
[1719166004504,2.14491389,64207.0,64206.0,0.00109042]
[1719166005929,1.89251389,64207.0,64206.0,0.00109042]
[1719166006129,1.94491389,64207.0,64206.0,0.00109042]
[1719166006542,2.14491389,64207.0,64206.0,0.00109042]
[1719166006939,2.11709512,64207.0,64206.0,0.00109042]
[1719166007294,2.04357949,64207.0,64206.0,0.00109042]
[1719166007448,2.11823343,64207.0,64206.0,0.00109042]
[1719166007838,2.11831768,64207.0,64206.0,0.00109042]
[1719166008539,2.11831768,64207.0,64206.0,0.06389042]
[1719166010443,2.1184728,64207.0,64206.0,0.06389042]
[1719166012174,1.9184728,64207.0,64206.0,0.06389042]
[1719166013135,2.01545942,64207.0,64206.0,0.06389042]
[1719166013575,2.01552123,64207.0,64206.0,0.06389042]
[1719166014536,1.93320385,64207.0,64206.0,0.06389042]